bitfinex/quotes_BTCUSD_20250124
["timestamp","ask_amount","ask_price","bid_price","bid_amount"]
[1737700094779,0.1998063,104910.0,104900.0,0.27678777]
[1737700095194,0.1998063,104910.0,104900.0,0.42678777]
[1737700095611,0.1998063,104910.0,104900.0,0.42728137]
[1737700096908,0.1998063,104910.0,104900.0,0.43228137]
[1737700097110,0.1998063,104910.0,104900.0,0.42828137]
[1737700097467,0.1998063,104910.0,104900.0,0.43228137]
[1737700097673,0.1998063,104910.0,104900.0,0.43128137]
[1737700097966,0.1998063,104910.0,104900.0,0.43228137]
[1737700099104,0.2992063,104910.0,104900.0,0.18493408]
[1737700099312,0.44471145,104910.0,104900.0,0.18493408]
[1737700100233,0.44471145,104910.0,104900.0,0.33393408]
[1737700100381,0.44471145,104910.0,104900.0,0.32993408]
[1737700100583,0.44471145,104910.0,104900.0,0.33093408]
[1737700100798,0.44471145,104910.0,104900.0,0.33193408]
[1737700104611,0.43471145,104910.0,104900.0,0.33193408]
[1737700104788,0.34531145,104910.0,104900.0,0.33193408]
[1737700109326,0.21082415,104910.0,104900.0,0.33193408]
[1737700109525,0.21082415,104910.0,104900.0,0.42928137]
[1737700112959,0.21082415,104910.0,104900.0,0.51118137]
[1737700114036,0.21082415,104910.0,104900.0,0.60650937]
[1737700114422,0.21082415,104910.0,104900.0,0.51118137]
[1737700118790,0.21082415,104910.0,104900.0,0.60650937]
[1737700121844,0.21082415,104910.0,104900.0,0.51118137]
[1737700125097,0.31531145,104910.0,104900.0,0.33193408]
[1737700126470,0.33531145,104910.0,104900.0,0.33193408]
[1737700126677,0.36831145,104910.0,104900.0,0.33193408]
[1737700127083,0.44731145,104910.0,104900.0,0.33193408]
[1737700131747,0.43731145,104910.0,104900.0,0.33193408]
[1737700132160,0.35831145,104910.0,104900.0,0.33193408]
[1737700132631,0.36831145,104910.0,104900.0,0.33193408]
[1737700137177,0.36831145,104910.0,104900.0,0.178786]
[1737700137415,0.52595874,104910.0,104900.0,0.178786]
[1737700138185,0.52595874,104910.0,104900.0,0.327786]
[1737700139224,0.52595874,104910.0,104900.0,0.326786]
[1737700139567,0.52995874,104910.0,104900.0,0.326786]
[1737700139985,0.52895874,104910.0,104900.0,0.326786]
[1737700140188,0.52995874,104910.0,104900.0,0.326786]
[1737700140385,0.52695874,104910.0,104900.0,0.326786]
[1737700140584,0.52695874,104910.0,104900.0,0.29329598]
[1737700140820,0.52995874,104910.0,104900.0,0.27768021]
[1737700141420,0.52895874,104910.0,104900.0,0.27768021]
[1737700141788,0.52995874,104910.0,104900.0,0.27768021]
[1737700141995,0.44665874,104910.0,104900.0,0.27768021]
[1737700142372,0.44965874,104910.0,104900.0,0.27768021]
[1737700142743,0.45265874,104910.0,104900.0,0.27768021]
[1737700142942,0.45265874,104910.0,104900.0,0.26524609]
[1737700147118,0.51985874,104910.0,104900.0,0.19685609]
[1737700147291,0.51985874,104910.0,104900.0,0.15344609]
[1737700148199,0.148328,104900.0,104890.0,0.33653623]
[1737700148379,0.2528153,104900.0,104890.0,0.33662988]
[1737700149492,0.2548153,104900.0,104890.0,0.33662988]
[1737700151038,0.3043153,104900.0,104890.0,0.33662988]
[1737700151254,0.48614989,104900.0,104890.0,0.33662988]
[1737700151465,0.56564989,104900.0,104890.0,0.33662988]
[1737700151862,0.46116259,104900.0,104890.0,0.33662988]
[1737700152740,0.38166259,104900.0,104890.0,0.33662988]
[1737700153101,0.33216259,104900.0,104890.0,0.33662988]
[1737700158760,0.43664989,104900.0,104890.0,0.33662988]
[1737700159034,0.33216259,104900.0,104890.0,0.33662988]
[1737700161164,0.43664989,104900.0,104890.0,0.33662988]
[1737700161597,0.33216259,104900.0,104890.0,0.33662988]
[1737700163031,0.43236259,104900.0,104890.0,0.33662988]
[1737700163231,0.33216259,104900.0,104890.0,0.33662988]
[1737700163552,0.33216259,104900.0,104890.0,0.34262988]
[1737700164614,0.33216259,104900.0,104890.0,0.34196816]
[1737700165670,0.33246121,104900.0,104890.0,0.34196816]
[1737700170528,0.33246121,104900.0,104890.0,0.32980958]
[1737700171478,0.33246121,104900.0,104890.0,0.29992958]
[1737700174209,0.33246121,104900.0,104890.0,0.26994958]
[1737700175491,0.33246121,104900.0,104890.0,0.11994958]
[1737700175834,0.43424611,104900.0,104890.0,0.26994958]
[1737700180533,0.36548871,104900.0,104890.0,0.26994958]
[1737700181507,0.43424611,104900.0,104890.0,0.26994958]
[1737700181717,0.36548871,104900.0,104890.0,0.26994958]
[1737700184343,0.25814142,104900.0,104890.0,0.26994958]
[1737700184578,0.25814142,104900.0,104890.0,0.39874958]
[1737700188023,0.27814142,104900.0,104890.0,0.39874958]
[1737700188240,0.25814142,104900.0,104890.0,0.39874958]
[1737700189357,0.43424611,104900.0,104890.0,0.24895958]
[1737700189512,0.43424611,104900.0,104890.0,0.19005958]
[1737700189715,0.43424611,104900.0,104890.0,0.131541]
[1737700193583,0.45312793,104900.0,104890.0,0.131541]
[1737700193786,0.138337,104890.0,104880.0,0.36217472]
[1737700193984,0.2758518,104890.0,104880.0,0.36222403]
[1737700194388,0.30718144,104900.0,104890.0,0.2295]
[1737700194592,0.00029862,104900.0,104890.0,0.46908429]
[1737700194813,0.09562662,104900.0,104890.0,0.46908429]
[1737700195016,0.00029862,104900.0,104890.0,0.46908429]
[1737700195223,0.09562662,104900.0,104890.0,0.46908429]
[1737700195431,0.16438402,104900.0,104890.0,0.37374729]
[1737700195627,0.16438402,104900.0,104890.0,0.37574729]
[1737700195832,0.1751123,104900.0,104890.0,0.37374729]
[1737700196706,0.1751123,104900.0,104890.0,0.37474729]
[1737700197321,0.1751123,104900.0,104890.0,0.37674729]
[1737700197700,0.21106339,104900.0,104890.0,0.37674729]
[1737700198506,0.53836339,104900.0,104890.0,0.37674729]
[1737700198892,0.53836339,104900.0,104890.0,0.46155971]
[1737700200244,0.53836339,104900.0,104890.0,0.46170181]
[1737700200795,0.4336549,104900.0,104890.0,0.55703881]
[1737700201383,0.4336549,104900.0,104890.0,0.46170181]
[1737700202379,0.53836339,104900.0,104890.0,0.46170181]
[1737700202947,0.4336549,104900.0,104890.0,0.46170181]
[1737700203194,0.53836339,104900.0,104890.0,0.36435452]
[1737700203393,0.53836339,104900.0,104890.0,0.21435452]
[1737700203615,0.58136339,104900.0,104890.0,0.21435452]
[1737700203815,0.58136339,104900.0,104890.0,0.16745452]
[1737700204016,0.25406339,104900.0,104890.0,0.31745452]
[1737700204418,0.25406339,104900.0,104890.0,0.23695452]
[1737700204621,0.25406339,104900.0,104890.0,0.08795452]
[1737700205033,0.25406339,104900.0,104890.0,0.08595452]
[1737700205344,0.25406339,104900.0,104890.0,0.23495452]
[1737700205487,0.25506339,104900.0,104890.0,0.23495452]
[1737700208338,0.21206339,104900.0,104890.0,0.23495452]
[1737700208519,0.21206339,104900.0,104890.0,0.2284421]
[1737700208716,0.21206339,104900.0,104890.0,0.2743421]
[1737700208918,0.23206339,104900.0,104890.0,0.2743421]
[1737700210777,0.1073549,104900.0,104890.0,0.37168939]
[1737700210982,0.1073549,104900.0,104890.0,0.46702639]
[1737700211533,0.4346549,104900.0,104890.0,0.46702639]
[1737700214636,0.0120269,104900.0,104890.0,0.46702639]
[1737700214846,0.00129862,104900.0,104890.0,0.49670285]
[1737700215272,0.00029862,104900.0,104890.0,0.61251527]
[1737700216640,0.00029862,104900.0,104890.0,0.61451527]
[1737700218977,0.09562662,104900.0,104890.0,0.55483881]
[1737700219135,0.20033511,104900.0,104890.0,0.47002639]
[1737700219336,0.52763511,104900.0,104890.0,0.47002639]
[1737700221232,0.42292662,104900.0,104890.0,0.47002639]
[1737700221588,0.42292662,104900.0,104890.0,0.37468939]
[1737700221756,0.42292662,104900.0,104890.0,0.47002639]
[1737700221958,0.32759862,104900.0,104890.0,0.47002639]
[1737700222163,0.42292662,104900.0,104890.0,0.47002639]
[1737700222819,0.32759862,104900.0,104890.0,0.47002639]
[1737700223415,0.32759862,104900.0,104890.0,0.4996771]
[1737700224334,0.32759862,104900.0,104890.0,0.47002639]
[1737700225402,0.00029862,104900.0,104890.0,0.47002639]
[1737700225885,0.00029862,104900.0,104890.0,0.55542304]
[1737700226285,0.09562662,104900.0,104890.0,0.55542304]
[1737700226485,0.00029862,104900.0,104890.0,0.58508404]
[1737700226660,0.00029862,104900.0,104890.0,0.55542304]
[1737700228214,0.09562662,104900.0,104890.0,0.55542304]
[1737700228422,0.09562662,104900.0,104890.0,0.46008604]
[1737700228968,0.09562662,104900.0,104890.0,0.30979667]
[1737700230505,0.20033511,104900.0,104890.0,0.30979667]
[1737700231342,0.42292662,104900.0,104890.0,0.30979667]
[1737700231786,0.52763511,104900.0,104890.0,0.30979667]
[1737700232012,0.42292662,104900.0,104890.0,0.30979667]
[1737700232528,0.52763511,104900.0,104890.0,0.30979667]
[1737700232744,0.42292662,104900.0,104890.0,0.22440002]
[1737700234569,0.52763511,104900.0,104890.0,0.22440002]
[1737700234872,0.42292662,104900.0,104890.0,0.22440002]
[1737700235053,0.42292662,104900.0,104890.0,0.22454212]
[1737700235508,0.52763511,104900.0,104890.0,0.22454212]
[1737700235911,0.42292662,104900.0,104890.0,0.22454212]
[1737700236086,0.52763511,104900.0,104890.0,0.22454212]
[1737700237643,0.42292662,104900.0,104890.0,0.22454212]
[1737700238830,0.52763511,104900.0,104890.0,0.30993877]
[1737700239054,0.52763511,104900.0,104890.0,0.26403877]
[1737700239259,0.22033511,104900.0,104890.0,0.08853875]
[1737700239880,0.22033511,104900.0,104890.0,0.08653875]
[1737700240142,0.21986109,104900.0,104890.0,0.08553875]
[1737700240271,0.21986109,104900.0,104890.0,0.08753875]
[1737700240496,0.21986109,104900.0,104890.0,0.08553875]
[1737700240697,0.22086109,104900.0,104890.0,0.08553875]
[1737700240922,0.57116109,104900.0,104890.0,0.08553875]
[1737700241328,0.57116109,104900.0,104890.0,0.08653875]
[1737700241949,0.57116109,104900.0,104890.0,0.08553875]
[1737700242350,0.59042257,104900.0,104890.0,0.08553875]
[1737700242762,0.59042257,104900.0,104890.0,0.0001421]
[1737700246026,0.26312257,104900.0,104890.0,0.0001421]
[1737700246690,0.26342099,104900.0,104890.0,0.0001421]
[1737700247837,0.095337,104890.0,104880.0,0.20221161]
[1737700248015,0.22304549,104890.0,104880.0,0.20221161]
[1737700248427,0.22304549,104890.0,104880.0,0.35221161]
[1737700248626,0.29044549,104890.0,104880.0,0.35221161]
[1737700249252,0.29044549,104890.0,104880.0,0.35321161]
[1737700249405,0.29044549,104890.0,104880.0,0.35521161]
[1737700249781,0.29044549,104890.0,104880.0,0.35321161]
[1737700250189,0.29144549,104890.0,104880.0,0.35321161]
[1737700250636,0.29144549,104890.0,104880.0,0.35221161]
[1737700252065,0.30143473,104890.0,104880.0,0.35221161]
[1737700254692,0.25403473,104890.0,104880.0,0.35221161]
[1737700256261,0.21103473,104890.0,104880.0,0.35221161]
[1737700256462,0.23103473,104890.0,104880.0,0.42791161]
[1737700257475,0.21103473,104890.0,104880.0,0.42791161]
[1737700257718,0.23103473,104890.0,104880.0,0.42791161]
[1737700258092,0.25403473,104890.0,104880.0,0.42791161]
[1737700258292,0.25403473,104890.0,104880.0,0.35221161]
[1737700258949,0.23403473,104890.0,104880.0,0.35221161]
[1737700259100,0.25403473,104890.0,104880.0,0.35221161]
[1737700265493,0.25403473,104890.0,104880.0,0.42951161]
[1737700266133,0.21103473,104890.0,104880.0,0.42951161]
[1737700266336,0.10632624,104890.0,104880.0,0.42951161]
[1737700266564,0.12932624,104890.0,104880.0,0.42951161]
[1737700266991,0.12932624,104890.0,104880.0,0.5268589]
[1737700267192,0.12932624,104890.0,104880.0,0.5765589]
[1737700267776,0.12932624,104890.0,104880.0,0.6719059]
[1737700268164,0.01098924,104890.0,104880.0,0.6719059]
[1737700268369,0.10632624,104890.0,104880.0,0.6719059]
[1737700268606,0.01098924,104890.0,104880.0,0.6719059]
[1737700269190,0.01128766,104890.0,104880.0,0.6719059]
[1737700270616,0.01128766,104890.0,104880.0,0.70161957]
[1737700271016,0.01128766,104890.0,104880.0,0.70115088]
[1737700271426,0.01128766,104890.0,104880.0,0.78654753]
[1737700272878,0.01128766,104890.0,104880.0,0.78754753]
[1737700273428,0.01028766,104890.0,104880.0,0.78754753]
[1737700274146,0.01028766,104890.0,104880.0,0.78954753]
[1737700274773,0.01028766,104890.0,104880.0,0.70415088]
[1737700279086,0.00029842,104890.0,104880.0,0.70415088]
[1737700280086,0.00029842,104890.0,104880.0,0.70315088]
[1737700280504,0.00029842,104890.0,104880.0,0.70215088]
[1737700280713,0.00029842,104890.0,104880.0,0.70615088]
[1737700281425,0.00029842,104890.0,104880.0,0.71629298]
[1737700281633,0.00029842,104900.0,104890.0,0.373037]
[1737700281838,0.00029842,104900.0,104890.0,0.8274637]
[1737700283981,0.00029842,104900.0,104890.0,0.8324637]
[1737700284829,0.00029842,104900.0,104890.0,0.8284637]
[1737700285201,0.00029842,104900.0,104890.0,0.8334637]
[1737700285480,0.00029842,104900.0,104890.0,0.8324637]
[1737700285665,0.00029842,104900.0,104890.0,0.8334637]
[1737700285862,0.00029842,104900.0,104890.0,0.50609796]
[1737700287020,0.00029842,104900.0,104890.0,0.47638429]
[1737700287444,0.00029842,104900.0,104890.0,0.47138429]
[1737700287879,0.00029842,104900.0,104890.0,0.47538429]
[1737700288254,0.00029842,104900.0,104890.0,0.47638429]
[1737700289110,0.00029842,104900.0,104890.0,0.50598672]
[1737700289314,0.00029842,104900.0,104890.0,0.84335246]
[1737700290014,0.00029842,104900.0,104890.0,0.83835246]
[1737700290436,0.00029842,104900.0,104890.0,0.84335246]
[1737700290979,0.00029842,104900.0,104890.0,0.84235246]
[1737700291190,0.00029842,104900.0,104890.0,0.84335246]
[1737700291810,0.00029862,104910.0,104890.0,0.64399917]
[1737700292015,0.00029862,104910.0,104900.0,0.47157529]
[1737700292215,0.00029862,104910.0,104900.0,0.50117772]
[1737700293042,0.00029862,104910.0,104900.0,0.52486143]
[1737700294011,0.00029862,104910.0,104900.0,0.52986143]
[1737700294982,0.00029862,104910.0,104900.0,0.53086143]
[1737700298399,0.00029862,104910.0,104900.0,0.54086143]
[1737700299185,0.00029862,104910.0,104900.0,0.53986143]
[1737700299629,0.00029862,104910.0,104900.0,0.53498613]
[1737700300066,0.00029862,104910.0,104900.0,0.53998613]
[1737700300399,0.00029862,104910.0,104900.0,0.54098613]
[1737700300854,4.773e-05,104910.0,104900.0,1.01760613]
[1737700301816,4.773e-05,104910.0,104900.0,1.02916613]
[1737700303075,4.773e-05,104910.0,104900.0,1.01760613]
[1737700303479,4.773e-05,104910.0,104900.0,1.01660613]
[1737700303658,4.773e-05,104910.0,104900.0,1.01160613]
[1737700303866,4.773e-05,104910.0,104900.0,1.01260613]
[1737700304072,4.773e-05,104910.0,104900.0,1.01760613]
[1737700304886,0.09536673,104910.0,104900.0,0.72858143]
[1737700305089,0.20007522,104910.0,104900.0,0.603651]
[1737700305286,0.27597522,104910.0,104900.0,0.50630371]
[1737700305686,0.32507522,104910.0,104900.0,0.50644581]
[1737700306089,0.32507522,104910.0,104900.0,0.65644581]
[1737700306328,0.32507522,104910.0,104900.0,0.50144581]
[1737700306529,0.32507522,104910.0,104900.0,0.65544581]
[1737700307155,0.3578081,104910.0,104900.0,0.65444581]
[1737700307538,0.3578081,104910.0,104900.0,0.65544581]
[1737700307896,0.37717156,104910.0,104900.0,0.65544581]
[1737700308092,0.37717156,104910.0,104900.0,0.65444581]
[1737700308270,0.37717156,104910.0,104900.0,0.65544581]
[1737700309119,0.37717156,104910.0,104900.0,0.64087082]
[1737700309394,0.37717156,104910.0,104900.0,0.63687082]
[1737700309802,0.37717156,104910.0,104900.0,0.64087082]
[1737700309979,0.37717156,104910.0,104900.0,0.63687082]
[1737700310187,0.37717156,104910.0,104900.0,0.63587082]
[1737700310590,0.37717156,104910.0,104900.0,0.63687082]
[1737700311311,0.37717156,104910.0,104900.0,0.63787082]
[1737700311545,0.48188005,104910.0,104900.0,0.63787082]
[1737700311749,0.50188005,104910.0,104900.0,0.63787082]
[1737700311942,0.50188005,104910.0,104900.0,0.16125082]
[1737700313167,0.37717156,104910.0,104900.0,0.16125082]
[1737700315671,0.50188005,104910.0,104900.0,0.16125082]
[1737700315879,0.37717156,104910.0,104900.0,0.16125082]
[1737700316095,0.48188005,104910.0,104900.0,0.16125082]
[1737700319056,0.48188005,104910.0,104900.0,0.16025082]
[1737700319443,0.48188005,104910.0,104900.0,0.15925082]
[1737700321406,0.48188005,104910.0,104900.0,0.1501421]
[1737700323007,0.37717156,104910.0,104900.0,0.1501421]
[1737700323530,0.37717156,104910.0,104900.0,0.15924047]
[1737700324756,0.22917156,104910.0,104900.0,0.15924047]
[1737700324959,0.22917156,104910.0,104900.0,0.25658776]
[1737700325163,0.2098081,104910.0,104900.0,0.35191576]
[1737700325412,0.2098081,104910.0,104900.0,0.25658776]
[1737700325731,0.2098081,104910.0,104900.0,0.35191576]
[1737700325904,0.2098081,104910.0,104900.0,0.25658776]
[1737700326947,0.31451659,104910.0,104900.0,0.25658776]
[1737700327149,0.31451659,104910.0,104900.0,0.15924047]
[1737700327357,0.33751659,104910.0,104900.0,0.15924047]
[1737700327701,0.41881659,104910.0,104900.0,0.15924047]
[1737700328684,0.53616388,104910.0,104900.0,0.00924047]
[1737700329158,0.53616388,104910.0,104900.0,0.0001421]
[1737700329466,0.58606388,104910.0,104900.0,0.0001421]
[1737700330283,0.59606388,104910.0,104900.0,0.0001421]
[1737700331546,0.58606388,104910.0,104900.0,0.0001421]
[1737700333267,0.59606388,104910.0,104900.0,0.0001421]
[1737700334048,0.118328,104900.0,104890.0,0.15]
[1737700334273,0.22303649,104900.0,104890.0,0.15]
[1737700334667,0.32774498,104900.0,104890.0,0.15]
[1737700334872,0.40344498,104900.0,104890.0,0.15]
[1737700335481,0.29873649,104900.0,104890.0,0.15]
[1737700335720,0.29873649,104900.0,104890.0,0.151]
[1737700335957,0.40344498,104900.0,104890.0,0.151]
[1737700336167,0.29873649,104900.0,104890.0,0.152]
[1737700336610,0.29873649,104900.0,104890.0,0.15]
[1737700336855,0.29873649,104900.0,104890.0,0.151]
[1737700337102,0.29873649,104900.0,104890.0,0.15]
[1737700338261,0.422637,104890.0,104880.0,0.34688502]
[1737700338456,0.52734549,104890.0,104880.0,0.34688502]
[1737700339071,0.52734549,104890.0,104880.0,0.42728502]
[1737700340068,0.52734549,104890.0,104880.0,0.42828502]
[1737700340273,0.52734549,104890.0,104880.0,0.42928502]
[1737700340488,0.52734549,104890.0,104880.0,0.42728502]
[1737700340933,0.52734549,104890.0,104880.0,0.42928502]
[1737700343790,0.52734549,104890.0,104880.0,0.34888502]
[1737700343987,0.52734549,104890.0,104880.0,0.34788502]
[1737700344204,0.20004549,104890.0,104880.0,0.34788502]
[1737700344413,0.2330135,104890.0,104880.0,0.34788502]
[1737700344661,0.33772199,104890.0,104880.0,0.34788502]
[1737700345492,0.33772199,104890.0,104880.0,0.34688502]
[1737700355383,0.2330135,104890.0,104880.0,0.34688502]
[1737700355928,0.2100135,104890.0,104880.0,0.42608502]
[1737700356974,0.51776928,104890.0,104880.0,0.34688502]
[1737700357425,0.56456928,104890.0,104880.0,0.34688502]
[1737700358180,0.56456928,104890.0,104880.0,0.33211745]
[1737700358380,0.56456928,104890.0,104880.0,0.26209662]
[1737700361448,0.58456928,104890.0,104880.0,0.26209662]
[1737700362835,0.58456928,104890.0,104870.0,0.17272452]
[1737700362836,0.118347,104880.0,104870.0,0.17272452]
[1737700363049,0.42511127,104880.0,104870.0,0.17272452]
[1737700364589,0.44511127,104880.0,104870.0,0.17272452]
[1737700365234,0.44511127,104880.0,104870.0,0.32272452]
[1737700365625,0.44611127,104880.0,104870.0,0.32272452]
[1737700366393,0.44511127,104880.0,104870.0,0.32272452]
[1737700366852,0.44611127,104880.0,104870.0,0.32272452]
[1737700368107,0.44511127,104880.0,104870.0,0.32272452]
[1737700368519,0.44711127,104880.0,104870.0,0.32272452]
[1737700369626,0.43711127,104880.0,104870.0,0.00608852]
[1737700370254,0.43711127,104880.0,104870.0,0.15608852]
[1737700371697,0.45617947,104880.0,104870.0,0.15608852]
[1737700375133,0.49433647,104880.0,104870.0,0.15608852]
[1737700375337,0.49433647,104880.0,104870.0,0.15623062]
[1737700375748,0.49463489,104880.0,104870.0,0.15623062]
[1737700377463,0.48463489,104880.0,104870.0,0.15623062]
[1737700377836,0.49463489,104880.0,104870.0,0.15623062]
[1737700378126,0.48463489,104880.0,104870.0,0.15623062]
[1737700378297,0.138356,104870.0,104860.0,0.4332624]
[1737700378507,0.24306449,104870.0,104860.0,0.4332624]
[1737700379560,0.22406449,104870.0,104860.0,0.4332624]
[1737700380113,0.24406449,104870.0,104860.0,0.4332624]
[1737700380334,0.22406449,104870.0,104860.0,0.4332624]
[1737700380538,0.24406449,104870.0,104860.0,0.4332624]
[1737700380745,0.22406449,104870.0,104860.0,0.4332624]
[1737700381101,0.22406449,104870.0,104860.0,0.4786624]
[1737700382505,0.20106449,104870.0,104860.0,0.4786624]
[1737700382964,0.21061905,104870.0,104860.0,0.4786624]
[1737700383994,0.21061905,104870.0,104860.0,0.4796624]
[1737700384411,0.21061905,104870.0,104860.0,0.4786624]
[1737700385037,0.20961905,104870.0,104860.0,0.4786624]
[1737700385238,0.20961905,104870.0,104860.0,0.4796624]
[1737700386222,0.23261905,104870.0,104860.0,0.4796624]
[1737700386854,0.23261905,104870.0,104860.0,0.4786624]
[1737700387056,0.23261905,104870.0,104860.0,0.3521624]
[1737700387544,0.23291747,104870.0,104860.0,0.3521624]
[1737700388594,0.23391747,104870.0,104860.0,0.3521624]
[1737700391584,0.33862596,104870.0,104860.0,0.3521624]
[1737700391783,0.23391747,104870.0,104860.0,0.3521624]
[1737700391988,0.33862596,104870.0,104860.0,0.3521624]
[1737700392391,0.23391747,104870.0,104860.0,0.3521624]
[1737700392618,0.33862596,104870.0,104860.0,0.3521624]
[1737700392915,0.23391747,104870.0,104860.0,0.3521624]
[1737700393355,0.51487325,104870.0,104860.0,0.3521624]
[1737700393563,0.34778198,104860.0,104850.0,0.03287933]
[1737700393768,0.34976427,104860.0,104840.0,0.2789623]
[1737700394005,0.32779098,104850.0,104840.0,0.2789623]
[1737700394601,0.34779098,104850.0,104840.0,0.2021623]
[1737700395022,0.34779098,104850.0,104840.0,0.28778623]
[1737700395356,0.45523236,104850.0,104840.0,0.28646158]
[1737700395557,0.45523236,104850.0,104840.0,0.27632158]
[1737700395959,0.45723236,104850.0,104840.0,0.39972158]
[1737700396190,0.50453236,104850.0,104840.0,0.36268159]
[1737700396470,0.50453236,104850.0,104840.0,0.31623057]
[1737700398330,0.50453236,104850.0,104840.0,0.23060664]
[1737700398778,0.50453236,104850.0,104840.0,0.18771058]
[1737700399268,0.32479998,104840.0,104830.0,0.12630247]
[1737700399477,0.42214727,104840.0,104830.0,0.27630247]
[1737700399903,0.44514727,104840.0,104830.0,0.27630247]
[1737700400941,0.44614727,104840.0,104830.0,0.27630247]
[1737700402840,0.22109149,104840.0,104830.0,0.35400247]
[1737700403858,0.31843878,104840.0,104830.0,0.35400247]
[1737700404576,0.22109149,104840.0,104830.0,0.35400247]
[1737700406504,0.20109149,104840.0,104830.0,0.35400247]
[1737700406846,0.22109149,104840.0,104830.0,0.35400247]
[1737700409064,0.20109149,104840.0,104830.0,0.35400247]
[1737700409245,0.22109149,104840.0,104830.0,0.35400247]
[1737700410258,0.22109149,104840.0,104830.0,0.26450247]
[1737700410988,0.22109149,104840.0,104830.0,0.26464457]
[1737700411624,0.32579998,104840.0,104830.0,0.26464457]
[1737700412187,0.44614727,104840.0,104830.0,0.15657457]
[1737700414959,0.34143878,104840.0,104830.0,0.15657457]
[1737700418307,0.34143878,104840.0,104820.0,0.27961477]
[1737700418308,0.24605578,104840.0,104820.0,0.27961477]
[1737700418432,0.63210898,104830.0,104820.0,0.42961477]
[1737700418637,0.30480898,104830.0,104820.0,0.42961477]
[1737700418825,0.20010049,104830.0,104820.0,0.42961477]
[1737700419428,0.20010049,104830.0,104820.0,0.43161477]
[1737700419688,0.30480898,104830.0,104820.0,0.43061477]
[1737700420097,0.30480898,104830.0,104820.0,0.43261477]
[1737700420491,0.20010049,104830.0,104820.0,0.43261477]
[1737700421383,0.30480898,104830.0,104820.0,0.43261477]
[1737700423327,0.20010049,104830.0,104820.0,0.43261477]
[1737700423729,0.2330512,104830.0,104820.0,0.43261477]
[1737700424558,0.2522004,104830.0,104820.0,0.43261477]
[1737700425469,0.26209595,104830.0,104820.0,0.43261477]
[1737700434920,0.26209595,104830.0,104820.0,0.43275697]
[1737700440579,0.10528755,104830.0,104820.0,0.53010426]
[1737700440788,0.17411715,104830.0,104820.0,0.53010426]
[1737700443554,0.17411715,104830.0,104820.0,0.56010426]
[1737700443970,0.17411715,104830.0,104820.0,0.64553495]
[1737700446176,0.24294675,104830.0,104820.0,0.54818766]
[1737700446358,0.24294675,104830.0,104820.0,0.51818766]
[1737700447811,0.21017164,104830.0,104820.0,0.51818766]
[1737700449061,0.21047026,104830.0,104820.0,0.51818766]
[1737700451703,0.21047026,104830.0,104820.0,0.43275697]
[1737700453724,0.10558617,104830.0,104820.0,0.43275697]
[1737700454120,0.21047026,104830.0,104820.0,0.43275697]
[1737700456081,0.21047026,104830.0,104820.0,0.53010426]
[1737700456507,0.10558617,104830.0,104820.0,0.53010426]
[1737700456841,0.21047026,104830.0,104820.0,0.53010426]
[1737700460547,0.21047026,104830.0,104820.0,0.43275697]
[1737700460751,0.21047026,104830.0,104820.0,0.38445697]
[1737700461361,0.31535435,104830.0,104820.0,0.38445697]
[1737700461558,0.31535435,104830.0,104820.0,0.15215697]
[1737700462211,0.43570164,104830.0,104820.0,0.1259703]
[1737700462420,0.56625029,104830.0,104820.0,0.05562571]
[1737700462625,0.56625029,104830.0,104820.0,0.20562571]
[1737700463351,0.56625029,104830.0,104820.0,0.20462571]
[1737700463879,0.56625029,104830.0,104820.0,0.20262571]
[1737700464086,0.53370164,104830.0,104820.0,0.20262571]
[1737700464292,0.53670164,104830.0,104820.0,0.20262571]
[1737700465373,0.51370164,104830.0,104820.0,0.20262571]
[1737700466028,0.51370164,104830.0,104820.0,0.16919571]
[1737700468041,0.095401,104820.0,104810.0,0.18793764]
[1737700468380,0.30516918,104820.0,104810.0,0.18793764]
[1737700469947,0.30616918,104820.0,104810.0,0.18793764]
[1737700470151,0.30616918,104820.0,104810.0,0.33793764]
[1737700470793,0.30516918,104820.0,104810.0,0.33793764]
[1737700471004,0.30616918,104820.0,104810.0,0.33793764]
[1737700471259,0.30516918,104820.0,104810.0,0.33793764]
[1737700471906,0.30516918,104820.0,104810.0,0.41393764]
[1737700473064,0.30516918,104820.0,104810.0,0.46363764]
[1737700473065,0.20028509,104820.0,104810.0,0.46363764]
[1737700473276,0.20328509,104820.0,104810.0,0.56098493]
[1737700473422,0.098401,104820.0,104810.0,0.56098493]
[1737700476006,0.098401,104820.0,104810.0,0.59098493]
[1737700476219,0.62368017,104830.0,104820.0,0.2747]
[1737700476366,0.62368017,104830.0,104820.0,0.37204729]
[1737700477734,0.62468017,104830.0,104820.0,0.37204729]
[1737700478148,0.33849417,104830.0,104820.0,0.46744829]
[1737700479081,0.43388617,104830.0,104820.0,0.46744829]
[1737700479283,0.43388617,104830.0,104820.0,0.37204729]
[1737700479284,0.53877026,104830.0,104820.0,0.37204729]
[1737700481836,0.43388617,104830.0,104820.0,0.46744829]
[1737700482867,0.33849417,104830.0,104820.0,0.46744829]
[1737700483065,0.43388617,104830.0,104820.0,0.46744829]
[1737700483266,0.33849417,104830.0,104820.0,0.46744829]
[1737700485904,0.53877026,104830.0,104820.0,0.2747]
[1737700486523,0.43388617,104830.0,104820.0,0.2747]
[1737700486741,0.43388617,104830.0,104820.0,0.37204729]
[1737700488862,0.43388617,104830.0,104820.0,0.22157327]
[1737700490012,0.53877026,104830.0,104820.0,0.12422598]
[1737700490245,0.43388617,104830.0,104820.0,0.12422598]
[1737700490799,0.53877026,104830.0,104820.0,0.22157327]
[1737700492315,0.43388617,104830.0,104820.0,0.22157327]
[1737700492546,0.53877026,104830.0,104820.0,0.22157327]
[1737700493895,0.43388617,104830.0,104820.0,0.22157327]
[1737700494811,0.43388617,104830.0,104820.0,0.31697427]
[1737700495249,0.43388617,104830.0,104820.0,0.22157327]
[1737700496817,0.53877026,104830.0,104820.0,0.22157327]
[1737700498052,0.43388617,104830.0,104820.0,0.22157327]
[1737700500609,0.43388617,104830.0,104820.0,0.31697427]
[1737700500838,0.43388617,104830.0,104820.0,0.22157327]
[1737700501178,0.53877026,104830.0,104820.0,0.22157327]
[1737700502857,0.43388617,104830.0,104820.0,0.22157327]
[1737700505446,0.53877026,104830.0,104820.0,0.22157327]
[1737700505697,0.43388617,104830.0,104820.0,0.22157327]
[1737700507277,0.53877026,104830.0,104820.0,0.09734729]
[1737700508520,0.53877026,104830.0,104820.0,0.09748939]
[1737700509668,0.53877026,104830.0,104820.0,0.0001421]
[1737700510466,0.61507026,104830.0,104820.0,0.0001421]
[1737700510683,0.28777026,104830.0,104820.0,0.0001421]
[1737700512325,0.39265435,104830.0,104820.0,0.0001421]
[1737700512629,0.43975435,104830.0,104820.0,0.0001421]
[1737700514733,0.53710164,104830.0,104820.0,0.0001421]
[1737700514943,0.57573917,104830.0,104820.0,0.0001421]
[1737700515145,0.53710164,104830.0,104820.0,0.0001421]
[1737700515603,0.30516918,104820.0,104810.0,0.33807984]
[1737700515827,0.38726918,104820.0,104810.0,0.33807984]
[1737700516032,0.51655791,104820.0,104810.0,0.11175184]
[1737700516238,0.56275791,104820.0,104810.0,0.11175184]
[1737700516812,0.56275791,104820.0,104810.0,0.26175184]